Workbook

Sheet Sheet1
A1: Organization Name | C1: The Teacher Foundation (Shraddha Trust)
A2: Donor Details | C2: Asha for Education (Stanford Chapter)
A3: Duration of the grant | C3: 2 years
A4: Grade | C4: 1st - 5th
A5: Budget ( INR) | C5: =C35 -> 525714.8
A6: Budget (USD) | C6: =+D35+F35 -> 11948.06364
A7: No. of Schools | C7: 1 school
A8: $ to Rupee exchange rate | C8: 44
A9: Sr. No. | B9: Line Items | C9: Total per school | E9: Remarks
C11: INR | D11: USD
A12: 1 | B12: TRAINING COST
A13: a | B13: Teacher Training ( including Material, Conveyance etc)
A14: I | B14: Material Cost | C14: =165690/5 -> 33138 | D14: =C14/C$8 -> 753.1363636 | E14: Materials for over 15 days of workshops subject tutorials, co planning sessions et( - worksheets , lesson plans, etc (assuming 25-30 tecahers per school)
A15: ii | B15: Conveyance Cost | C15: =96705/5 -> 19341 | D15: =C15/C$8 -> 439.5681818 | E15: Conveyance to the school and back, assuming auto fares Rs 50 per trip, Rs 100 per day x approx 100 visits per year
A16: B | B16: Heads Training ( including Material, Conveyance, professional fee etc)
A17: I | B17: Material Cost | C17: =11340/5 -> 2268 | D17: =C17/C$8 -> 51.54545455 | E17: Materials for HeadLAMP programme and school improvement framework - folders, handouts, etc (2-4 Heads, middlelevel leaders per school)
A18: ii | B18: Conveyance Cost | C18: =10710/5 -> 2142 | D18: =C18/C$8 -> 48.68181818 | E18: Visits for HeadLAMP programme and headship support
A19: iii | B19: Professional fee | C19: =56700/5 -> 11340 | D19: =C19/C$8 -> 257.7272727 | E19: 10 workshop sessions plus school visits to assist Head in development of school audit and implementation plan
A20: c | B20: Mentors/Coaches Training ( including Material, Conveyance etc)
A21: I | B21: Material Cost | C21: =3024/5 -> 604.8 | D21: =C21/C$8 -> 13.74545455 | E21: Handouts, folders etc for 3days of workshops- 4 mentors per school
A22: ii | B22: Conveyance Cost | C22: =630/5 -> 126 | D22: =C22/C$8 -> 2.863636364 | E22: 10 visits per school @ 4 mentors per school, Rs 100 per visit
A23: d | B23: SALARIES FOR TRAINERS & PROJECT HEAD | C23: =[1]Caterpillar!C23/8*5*1.2 -> 0
A24: I | B24: TRAINERS ( 2.5 Trainers – 1 Trainer per 2 Schools & Specific Consultant when necessary) | C24: =28000*12*2/3 -> 224000 | D24: =C24/C$8 -> 5090.909091 | E24: 1 trainer per 2-3 schools @ approx Rs 28,000 per month per trainer
A25: ii | B25: PROJECT HEAD (Part Salary) | C25: =55000*12*2/20 -> 66000 | D25: =C25/C$8 -> 1500 | E25: Project Head shared across 20 schools @ Rs 55,000 per mth
B26: TOTAL TRAINING COST (1) | C26: =SUM(C14:C25) -> 358959.8 | D26: =SUM(D14:D25) -> 8158.177273
A27: 2 | B27: SCHOOL INFRASTRUCTURE INITIATIVE | C27: 50000 | D27: =C27/C$8 -> 1136.363636 | E27: 1 significant, visible but low cost intervention in the school eg developing a vibrant library or resource center, depending upon the needs of the school
A28: 3 | B28: MEASUREMENT & EVALUATION | C28: 25000 | D28: 568.1818182 | E28: 1. Baseline and endline assessment of students ( 2 classes eg class 3 and 5 in 2 subjects eg English and Maths) with comparisons with averages for all affordable schools studied; 2 rounds of teacher observations (pre and post)
A29: 4 | B29: TRAIN THE TRAINER | C29: =31500/5 -> 6300 | D29: 143.1818182 | E29: spend onTTF train-the-trainer workshops spread across each trainer
A30: 5 | B30: MONITORING | C30: =35280/5 -> 7056 | D30: 160.3636364 | E30: Supervision costs to monitor progress of the programme
A31: 6 | B31: YEAR END EVENT/RECOGNITION/AWARDS | C31: =0/5 -> 0 | D31: 0
A32: 7 | B32: MANAGEMENT & CO ORDINATION EXPENSES | C32: =232177/5 -> 46435.4 | D32: 1055.35 | E32: costs of recruitment of 10 Affordable private schools, planning, hiring of staff, school relationships, management of the team
A33: 8 | B33: SUPPORT AND OTHER SERVICES | C33: =114818/5 -> 22963.6 | D33: 521.9 | E33: rent, utilities, finance and admin, communication, audit, photocopying, stationery, etc
A34: 9 | B34: Contingency/ Misc. | C34: =45000/5 -> 9000 | D34: =C34/C$8 -> 204.5454545
B35: TOTAL - 1 School : | C35: =+C26+C27+C28+C29+C30+C31+C32+C33+C34 -> 525714.8 | D35: =+D26+D27+D28+D29+D30+D31+D32+D33+D34 -> 11948.06364
B36: Total for 3 schools for 2 years (if funding 100%) | C36: =C35*3 -> 1577144.4 | D36: =D35*3 -> 35844.19091
B37: Total for 3 schools per year (if funding 100%) | C37: =C36/2 -> 788572.2 | D37: =D36/2 -> 17922.09545
